bitfinex/quotes_SOLUSD_20240718
["timestamp","ask_amount","ask_price","bid_price","bid_amount"]
[1721278685886,12.34,157.98,157.97,51.79250532]
[1721278686403,12.34,157.99,157.98,6.3295]
[1721278686596,12.34,157.99,157.98,51.3295]
[1721278686900,12.34,158.01,158.0,6.3291]
[1721278687093,12.34,158.01,158.0,45.0]
[1721278687291,12.34,158.01,157.99,51.3294]
[1721278687495,12.34,158.0,157.99,51.3294]
[1721278688694,12.34,158.01,158.0,6.329]
[1721278688912,21.9284,158.05,158.0,51.329]
[1721278689078,15.6013,158.05,158.01,51.79019175]
[1721278689278,15.6013,158.05,158.02,6.78958933]
[1721278689483,15.6013,158.05,158.03,45.0]
[1721278689792,12.34,158.04,158.03,45.0]
[1721278693092,12.34,158.04,158.02,45.0]
[1721278693396,12.34,158.03,158.01,45.0]
[1721278693582,12.34,158.02,158.01,45.0]
[1721278694701,12.34,158.02,158.01,45.46162733]
[1721278695327,12.34,158.02,158.01,45.0]
[1721278698910,12.34,158.02,158.01,45.46170026]
[1721278699405,12.34,158.02,158.01,45.0]
[1721278702916,12.34,157.96,157.95,6.3311]
[1721278703409,12.34,157.96,157.95,51.3311]
[1721278705600,12.34,157.96,157.95,45.0]
[1721278705905,12.34,157.96,157.95,51.3311]
[1721278706107,1.58236184,157.99,157.96,6.3305]
[1721278706294,57.53169995,158.0,157.97,45.0]
[1721278706485,12.34,157.98,157.97,45.0]
[1721278707705,12.34,157.98,157.96,45.0]
[1721278707901,12.34,157.97,157.96,45.0]
[1721278708107,12.34,157.97,157.96,51.3307]
[1721278708611,12.34,157.97,157.96,45.0]
[1721278708786,12.34,157.97,157.95,45.46294182]
[1721278708991,12.34,157.96,157.95,51.79384182]
[1721278709512,12.34,157.96,157.95,51.3309]
[1721278711990,12.34,157.96,157.94,15.8286]
[1721278712201,12.34,157.95,157.94,15.8286]
[1721278712394,12.34,157.95,157.9,25.8319]
[1721278712597,12.34,157.92,157.91,6.3327]
[1721278713499,12.34,157.92,157.91,51.3327]
[1721278716613,12.34,157.92,157.91,45.0]
[1721278716799,12.34,157.92,157.9,15.8319]
[1721278717005,12.34,157.91,157.86,47.5103]
[1721278717206,12.34,157.87,157.86,53.845]
[1721278717704,12.34,157.87,157.86,22.1714]
[1721278718217,12.34,157.87,157.85,6.335]
[1721278718607,12.34,157.87,157.86,6.3347]
[1721278719517,12.34,157.87,157.86,51.3347]
[1721278719698,12.34,157.87,157.86,6.3347]
[1721278720221,1.58341809,157.91,157.87,6.3339]
[1721278720222,12.34,157.88,157.87,6.3339]
[1721278721114,12.34,157.88,157.87,51.3339]
[1721278721312,12.34,157.88,157.87,45.0]
[1721278721511,1.58341809,157.91,157.86,45.0]
[1721278721716,12.34,157.88,157.87,6.3343]
[1721278721903,12.34,157.88,157.87,51.3343]
[1721278722811,12.34,157.88,157.87,45.0]
[1721278723226,12.34,157.88,157.85,22.172]
[1721278723439,12.34,157.86,157.85,22.172]
[1721278723728,12.34,157.87,157.86,6.3345]
[1721278724614,12.34,157.87,157.86,51.3345]
[1721278725527,12.34,157.89,157.86,55.46512709]
[1721278725825,12.34,157.89,157.88,6.3338]
[1721278726007,12.34,157.89,157.88,51.79840176]
[1721278726619,12.34,157.9,157.88,51.79840176]
[1721278726816,12.34,157.9,157.89,45.0]
[1721278727843,12.34,157.9,157.89,51.3334]
[1721278728431,12.34,157.91,157.89,51.3334]
[1721278729406,16.3078,157.94,157.89,45.0]
[1721278729612,12.34,157.9,157.89,45.0]
[1721278729929,12.34,157.9,157.88,45.0]
[1721278730334,12.34,157.89,157.88,51.3339]
[1721278730627,12.34,157.9,157.89,6.3335]
[1721278730836,12.34,157.91,157.89,51.3335]
[1721278731043,12.34,157.91,157.9,45.0]
[1721278732526,12.34,157.91,157.9,45.46419874]
[1721278732911,12.34,157.91,157.9,0.46419874]
[1721278733112,12.34,157.91,157.89,45.0]
[1721278733413,12.34,157.9,157.89,45.0]
[1721278734524,12.34,157.91,157.89,51.79774297]
[1721278734833,12.34,157.91,157.9,0.46425068]
[1721278736437,12.34,157.92,157.9,6.79735068]
[1721278736641,12.34,157.92,157.91,45.0]
[1721278738817,6.3312,157.95,157.91,45.0]
[1721278739019,12.34,157.92,157.91,45.0]
[1721278740044,12.34,157.92,157.9,45.0]
[1721278740440,12.34,157.92,157.9,51.3331]
[1721278740643,6.3307,157.96,157.91,6.3327]
[1721278740954,6.3307,157.96,157.92,45.0]
[1721278741243,12.34,157.93,157.92,45.0]
[1721278741631,12.34,157.93,157.91,45.46387797]
[1721278743852,7.91365114,157.97,157.91,61.29537797]
[1721278744061,15.9454,157.98,157.91,83.63537797]
[1721278744269,49.36,158.0,157.91,83.63537797]
[1721278744270,12.34,157.96,157.91,83.63537797]
[1721278744764,12.34,157.96,157.93,6.3318]
[1721278744929,12.34,157.96,157.94,45.0]
[1721278745432,12.34,157.96,157.94,45.46311237]
[1721278745740,12.34,157.95,157.94,45.0]
[1721278745949,18.6711,157.95,157.94,45.0]
[1721278746258,12.34,157.95,157.94,45.0]
[1721278747967,12.34,157.96,157.93,51.3318]
[1721278748132,1.58250305,158.05,157.96,6.3307]
[1721278748337,31.6191,158.14,157.97,45.46250109]
[1721278748639,12.34,158.0,157.97,45.46250109]
[1721278748943,12.34,158.0,157.98,45.0]
[1721278749140,12.34,158.0,157.97,0.46250109]
[1721278749345,12.34,157.99,157.97,0.46250109]
[1721278750557,12.34,157.99,157.97,6.79270109]
[1721278750764,12.34,157.99,157.98,45.0]
[1721278751458,1.58229212,158.07,157.98,45.0]
[1721278751459,12.34,158.0,157.98,45.0]
[1721278751694,12.34,158.0,157.99,0.46219273]
[1721278752581,12.34,158.01,157.99,0.46219273]
[1721278753652,12.34,158.01,157.98,51.3298]
[1721278754079,12.34,158.0,157.98,45.0]
[1721278755257,12.34,157.99,157.98,45.0]
[1721278755471,12.34,157.99,157.97,45.0]
[1721278755673,12.34,157.99,157.96,22.1564]
[1721278755871,12.34,157.97,157.96,22.1564]
[1721278756868,12.34,157.97,157.96,67.1564]
[1721278757076,12.34,157.97,157.96,60.8258]
[1721278757658,12.34,157.98,157.96,60.8258]
[1721278757874,12.34,158.0,157.97,45.0]
[1721278758085,12.34,158.0,157.98,0.4622387]
[1721278758780,12.34,158.0,157.99,6.3295]
[1721278758983,12.34,158.0,157.99,51.3295]
[1721278760262,12.34,158.0,157.99,45.0]
[1721278762568,24.68,158.0,157.99,45.0]
[1721278765100,31.0091,158.0,157.95,6.3311]
[1721278765283,1.58261792,157.99,157.96,45.0]
[1721278765481,12.34,158.0,157.96,51.3307]
[1721278765482,12.34,157.97,157.96,51.3307]
[1721278767071,12.34,157.97,157.96,51.79353183]
[1721278767270,12.34,157.98,157.96,51.79353183]
[1721278767701,12.34,157.97,157.96,51.79346349]
[1721278769377,12.34,157.97,157.96,51.3307]
[1721278770177,12.34,157.97,157.91,15.8308]
[1721278770370,12.34,157.93,157.91,15.8308]
[1721278770569,12.34,157.93,157.92,0.46382053]
[1721278770770,12.34,157.93,157.91,15.8308]
[1721278771075,12.34,157.93,157.92,6.332]
[1721278771280,12.34,157.93,157.91,22.1634]
[1721278771866,12.34,157.92,157.91,22.1634]
[1721278772397,12.34,157.93,157.91,22.1634]
[1721278772600,1.58293946,157.95,157.92,45.0]
[1721278772903,12.34,157.93,157.92,51.3322]
[1721278773585,12.34,157.93,157.92,45.0]
[1721278780884,12.34,157.94,157.93,6.3319]
[1721278781085,12.34,157.94,157.93,51.3319]
[1721278781702,12.34,157.94,157.93,45.0]
[1721278784613,12.34,157.94,157.93,51.3319]
[1721278784814,12.34,157.95,157.94,6.3314]
[1721278784990,12.34,157.95,157.94,51.3314]
[1721278785710,12.34,157.95,157.94,45.0]
[1721278787815,12.34,157.95,157.93,45.0]
[1721278788013,12.34,157.94,157.93,45.0]
[1721278788816,12.34,157.94,157.92,45.0]
[1721278789114,12.34,157.93,157.92,45.0]
[1721278789320,12.34,157.93,157.91,15.8308]
[1721278789527,12.34,157.92,157.91,22.1635]
[1721278790930,12.34,157.93,157.91,67.1635]
[1721278791227,12.34,157.93,157.92,45.0]
[1721278793031,12.34,157.94,157.92,51.79625332]
[1721278793203,12.34,157.94,157.93,0.4635811]
[1721278793403,12.34,157.94,157.93,6.7954811]
[1721278793616,12.34,157.94,157.93,51.7954811]
[1721278794409,12.34,157.94,157.93,51.3319]
[1721278794933,12.34,157.94,157.93,45.0]
[1721278795440,6.3299,157.98,157.93,51.3319]
[1721278795623,12.34,157.95,157.94,45.46338123]
[1721278795797,7.91257326,157.98,157.94,45.46338123]
[1721278795994,12.34,157.95,157.94,45.0]
[1721278796947,12.34,157.95,157.94,51.3315]
[1721278797253,12.34,157.96,157.94,51.3315]
[1721278797615,12.34,157.96,157.94,45.0]
[1721278797943,12.34,157.96,157.94,45.46323441]
[1721278798652,12.34,157.95,157.94,45.46323441]
[1721278798813,12.34,157.95,157.94,45.0]
[1721278800235,12.34,157.95,157.93,45.0]
[1721278800456,12.34,157.95,157.93,45.46333541]
[1721278801119,12.34,157.95,157.94,0.46328823]
[1721278801435,1.58268277,157.99,157.94,0.46328823]
[1721278801436,12.34,157.96,157.94,0.46328823]
[1721278802937,12.34,157.96,157.94,6.79468823]
[1721278803140,12.34,157.96,157.95,45.0]
[1721278804748,12.34,157.98,157.95,51.3311]
[1721278804924,12.34,157.98,157.96,0.462665]
[1721278806648,6.3291,158.0,157.96,0.462665]
[1721278806649,15.0361,158.01,157.96,26.289365]
[1721278806858,31.6125,158.17,157.98,10.0]
[1721278806859,15.342,158.06,157.98,10.0]
[1721278807021,12.34,158.04,158.02,6.3282]
[1721278807434,1.58183088,158.05,158.03,45.0]
[1721278807656,13.92197959,158.04,157.99,15.8229]
[1721278807822,6.3283,158.02,158.0,45.0]
[1721278808138,12.34,158.01,158.0,45.0]
[1721278808439,13.92217274,158.01,157.95,22.1575]
[1721278808740,6.3296,157.99,157.96,45.0]
[1721278808927,12.34,157.97,157.91,15.8309]
[1721278809128,12.34,157.94,157.91,15.8309]
[1721278809338,12.34,157.94,157.92,6.3322]
[1721278810919,1.58275577,157.99,157.92,10.0]
[1721278811119,12.34,157.96,157.92,10.0]
[1721278811546,12.34,157.97,157.96,6.3306]
[1721278811755,12.34,157.97,157.96,51.3306]
[1721278812255,12.34,157.97,157.96,45.0]
[1721278812428,12.34,157.97,157.95,51.331]
[1721278812622,12.34,157.97,157.96,0.46292254]
[1721278812826,12.34,157.98,157.96,6.79362254]
[1721278813025,12.34,157.98,157.97,45.0]
[1721278816045,12.34,157.98,157.96,45.0]
[1721278816230,12.34,157.97,157.96,45.0]
[1721278816431,12.34,157.97,157.95,45.0]
[1721278816640,12.34,157.97,157.96,0.46293052]
[1721278816847,12.34,157.97,157.96,0.46292725]
[1721278817350,12.34,157.97,157.96,0.46292099]
[1721278818047,12.34,157.97,157.95,51.3311]
[1721278818547,12.34,157.97,157.96,0.46292045]
[1721278818845,16.5556,158.01,157.96,6.79362836]
[1721278819037,12.34,157.99,157.97,45.0]
[1721278819432,12.34,157.99,157.97,51.3303]
[1721278819936,12.34,158.01,157.98,15.8246]
[1721278820255,7.90919253,158.05,158.0,6.3287]
[1721278820430,12.34,158.02,158.01,45.46147844]
[1721278820836,12.34,158.02,158.01,45.0]
[1721278824849,12.34,158.02,158.0,45.0]
[1721278825655,1.58195349,158.05,158.0,45.46166053]
[1721278825953,1.58195349,158.05,158.0,51.329]
[1721278825954,12.34,158.03,158.0,51.329]
[1721278826149,12.34,158.03,158.01,0.46160093]
[1721278826351,12.34,158.02,158.0,51.329]
[1721278826952,12.34,158.02,158.0,45.0]
[1721278828250,12.34,158.01,158.0,45.0]
[1721278828449,12.34,158.01,157.99,45.0]
[1721278828757,12.34,158.0,157.95,15.8275]
[1721278828938,6.3286,158.02,157.96,6.3306]
[1721278829139,6.3286,158.02,157.96,6.79325175]
[1721278829357,1.58240611,158.01,157.96,6.3306]
[1721278829559,1.58240611,158.01,157.97,0.4626553]
[1721278830466,1.58240611,158.01,157.97,45.4626553]
[1721278830656,7.91110611,158.01,157.97,45.0]
[1721278830862,6.3287,158.01,157.97,45.0]
[1721278831077,1.58240505,158.02,157.98,0.46264812]
[1721278832134,7.91080505,158.02,157.98,0.46264812]
[1721278835268,6.3287,158.01,157.98,0.46264812]
[1721278835473,12.34,158.0,157.98,0.46264812]
[1721278836353,12.34,158.0,157.98,6.79244812]
[1721278836549,12.34,158.0,157.99,45.0]
[1721278836757,12.34,158.0,157.97,51.3302]
[1721278836968,12.34,157.99,157.97,51.3302]
[1721278837141,12.34,157.99,157.98,6.79212802]
[1721278837474,12.34,158.0,157.99,6.3295]
[1721278837649,12.34,158.01,157.99,51.79156721]
[1721278837848,12.34,158.01,158.0,51.3291]
[1721278838056,12.34,158.02,158.0,60.8227]
[1721278838252,12.34,158.03,158.01,6.79013138]
[1721278838463,12.34,158.03,158.02,45.46144921]
[1721278838652,12.34,158.04,158.02,45.46144921]
[1721278839484,7.90817252,158.07,158.02,51.78974921]
[1721278839684,6.3259,158.08,158.03,6.3277]
[1721278839877,12.34,158.06,158.04,45.46053291]
[1721278840062,12.34,158.06,158.05,0.46065587]
[1721278841464,12.34,158.08,158.05,0.46065587]
[1721278842168,12.34,158.07,158.04,45.0]
[1721278842345,12.34,158.06,158.04,45.0]
[1721278843159,12.34,158.05,158.04,45.0]
[1721278843552,12.34,158.05,158.04,51.3275]
[1721278843757,12.34,158.06,158.04,51.3275]
[1721278843970,12.34,158.06,158.05,0.46064434]
[1721278844264,12.34,158.07,158.05,0.46064434]
[1721278845060,12.34,158.07,158.04,45.0]
[1721278845264,12.34,158.06,158.04,45.0]
[1721278845653,12.34,158.06,158.04,45.46082315]
[1721278846476,12.34,158.06,158.04,45.0]
[1721278846770,12.34,158.05,158.01,6.3283]
[1721278846959,12.34,158.03,158.02,6.7895371]
[1721278847154,12.34,158.04,158.02,6.7895371]
[1721278847548,12.34,158.04,158.02,6.3283]
[1721278847773,6.3258,158.09,158.03,22.1476]
[1721278847956,12.34,158.06,158.03,22.1476]
[1721278848350,12.34,158.06,158.04,45.0]
[1721278849067,12.34,158.06,158.04,51.3274]
[1721278849469,12.34,158.06,158.04,51.78818371]
[1721278851165,12.34,158.05,158.04,45.0]
[1721278852457,12.34,158.05,158.01,6.3285]
[1721278852772,7.90824791,158.07,158.01,6.3285]
[1721278852773,12.34,158.04,158.01,6.3285]
[1721278852967,12.34,158.04,158.02,6.78957109]
[1721278853573,12.34,158.04,158.02,6.3283]
[1721278853774,12.34,158.04,158.03,45.0]
[1721278855175,12.34,158.05,158.03,45.0]
[1721278855377,12.34,158.05,158.02,45.0]
[1721278855580,12.34,158.05,158.03,0.46117694]
[1721278858696,12.34,158.05,158.02,45.0]
[1721278858868,12.34,158.05,158.03,0.46117949]
[1721278859787,12.34,158.04,158.03,0.46118065]
[1721278860093,6.3267,158.06,158.02,45.46128853]
[1721278860389,12.34,158.05,158.02,45.46128853]
[1721278860757,6.3263,158.07,158.02,51.78948853]
[1721278860965,12.34,158.04,158.02,45.0]
[1721278861882,12.34,158.04,158.02,51.3282]
[1721278862086,6.3064,158.11,158.04,6.3272]
[1721278862087,6.3256,158.09,158.04,6.3272]
[1721278862284,7.90660852,158.1,158.05,51.78749647]
[1721278862591,7.90660852,158.1,158.05,71.27729647]
[1721278862592,12.34,158.1,158.05,71.27729647]
[1721278863089,12.34,158.1,158.07,6.3262]
[1721278863292,12.34,158.11,158.08,45.0]
[1721278863466,12.34,158.1,158.08,45.0]
[1721278863797,12.34,158.1,158.08,51.3258]
[1721278864167,12.34,158.11,158.09,0.45985883]
[1721278864802,12.34,158.12,158.09,0.45985883]
[1721278865102,12.34,158.12,158.09,6.78525883]
[1721278865264,12.34,158.12,158.1,45.0]
[1721278867374,12.34,158.13,158.1,45.0]
[1721278867573,12.34,158.13,158.11,0.45926125]
[1721278869102,12.34,158.12,158.11,0.45926125]
[1721278869402,12.34,158.12,158.1,45.45937036]
[1721278870496,12.34,158.12,158.1,45.0]
[1721278870682,12.34,158.12,158.09,45.0]
[1721278871081,12.34,158.12,158.1,0.45937016]
[1721278871483,12.34,158.11,158.1,0.45937016]
[1721278871809,12.34,158.11,158.09,45.0]
[1721278873700,12.34,158.1,158.09,45.0]
[1721278873886,12.34,158.1,158.08,45.0]
[1721278874895,12.34,158.1,158.08,51.3258]
[1721278875190,12.34,158.1,158.08,45.0]
[1721278875508,12.34,158.11,158.08,51.3255]
[1721278875690,12.34,158.1,158.08,51.3255]
[1721278876402,12.34,158.11,158.08,51.3255]
[1721278877400,12.34,158.11,158.09,0.45962358]
[1721278877793,12.34,158.1,158.08,51.3255]
[1721278878009,12.34,158.1,158.08,51.78521972]
[1721278880709,12.34,158.1,158.08,51.78522216]
[1721278880927,1.58123205,158.15,158.11,6.3247]
[1721278881094,12.34,158.12,158.11,6.3247]
[1721278881295,12.34,158.12,158.11,51.3247]
[1721278881617,1.58123205,158.15,158.11,51.3247]
[1721278881802,12.34,158.13,158.12,45.45894869]
[1721278881986,12.34,158.13,158.12,45.0]
[1721278883108,12.34,158.13,158.12,67.135]
[1721278883803,12.34,158.14,158.12,60.8107]
[1721278885490,15.3633,158.17,158.12,67.1349]
[1721278885689,12.34,158.14,158.13,0.45866585]
[1721278886103,12.34,158.14,158.13,6.78256585]
[1721278886306,12.34,158.14,158.13,51.3239]
[1721278886629,12.34,158.15,158.13,51.3239]
[1721278886839,12.34,158.15,158.14,45.0]
[1721278887490,12.34,158.15,158.13,45.0]
[1721278887896,12.34,158.14,158.13,45.0]
[1721278892026,6.3219,158.18,158.13,51.78278985]
[1721278892208,12.34,158.16,158.13,51.78278985]
[1721278893318,12.34,158.15,158.13,51.78278985]
[1721278893914,12.34,158.15,158.13,51.78246171]
[1721278895318,12.34,158.14,158.13,45.0]
[1721278896202,12.34,158.14,158.09,15.8137]
[1721278896411,12.34,158.1,158.08,6.3258]
[1721278896616,7.9050098,158.14,158.08,6.3258]
[1721278896617,12.34,158.09,158.08,6.3258]
[1721278897012,12.34,158.09,158.06,15.8165]
[1721278897219,12.34,158.07,158.06,15.8165]
[1721278897810,12.34,158.07,158.06,22.1432]
[1721278898205,12.34,158.07,158.03,25.8197]
[1721278898408,12.34,158.06,158.04,6.3274]
[1721278899011,12.34,158.05,158.04,6.3274]
[1721278900419,12.34,158.05,158.03,15.8197]
[1721278900612,12.34,158.04,158.03,22.1476]
[1721278901614,12.34,158.05,158.03,22.1476]
[1721278901808,12.34,158.05,158.04,45.0]
[1721278902434,12.34,158.05,158.04,51.3275]
[1721278904118,12.34,158.06,158.04,51.3275]
[1721278904724,12.34,158.06,158.05,0.4606728]
[1721278905040,12.34,158.07,158.05,0.4606728]
[1721278905218,12.34,158.07,158.05,6.7876728]
[1721278905418,12.34,158.08,158.06,67.1433]
[1721278905629,12.34,158.08,158.06,22.1433]
[1721278905818,12.34,158.07,158.04,45.0]
[1721278906028,12.34,158.05,158.04,45.0]
[1721278906822,18.6672,158.05,158.0,6.3288]
[1721278907139,12.34,158.02,158.0,6.3288]
[1721278907623,12.34,158.02,158.01,6.3287]
[1721278908337,12.34,158.02,158.01,51.3287]
[1721278909828,12.34,158.03,158.02,6.3281]
[1721278910132,12.34,158.03,158.02,51.3281]
[1721278910940,12.34,158.04,158.03,6.3278]
[1721278911122,12.34,158.04,158.03,51.3278]
[1721278912445,6.3251,158.1,158.03,60.8188]
[1721278912743,6.3247,158.11,158.04,55.0]
[1721278912932,7.90663431,158.1,158.05,6.3267]
[1721278913138,12.34,158.08,158.06,45.0]
[1721278913442,13.92166954,158.07,158.04,51.3274]
[1721278913618,12.34,158.05,158.04,51.3274]
[1721278913817,12.34,158.05,158.04,45.0]
[1721278914218,1.58166954,158.07,158.04,45.0]
[1721278914426,12.34,158.05,158.04,45.46085922]
[1721278916059,12.34,158.05,158.04,51.78825922]
[1721278916528,12.34,158.06,158.04,51.78825922]
[1721278916727,12.34,158.06,158.05,6.78789442]
[1721278916927,12.34,158.06,158.05,51.78789442]
[1721278917150,12.34,158.06,158.05,51.3271]
[1721278918152,12.34,158.07,158.06,6.3266]
[1721278918455,12.34,158.07,158.06,51.78692857]
[1721278918838,12.34,158.07,158.06,51.3266]
[1721278919225,12.34,158.07,158.06,45.0]
[1721278921234,12.34,158.07,158.05,45.0]
[1721278921473,12.34,158.06,158.05,45.0]
[1721278921759,12.34,158.06,158.04,45.0]
[1721278922053,13.92163348,158.05,157.99,15.8229]
[1721278922254,12.34,158.01,157.99,15.8229]
[1721278922924,12.34,158.01,157.99,22.61395009]
[1721278923624,12.34,158.01,157.99,22.152]
[1721278923830,12.34,158.01,158.0,45.0]
[1721278924442,12.34,158.02,158.0,45.46194317]
[1721278924635,1.58211132,158.05,158.0,45.46194317]
[1721278924636,12.34,158.03,158.0,45.46194317]
[1721278925635,12.34,158.03,158.0,55.46194317]
[1721278926137,12.34,158.03,158.01,6.3285]
[1721278926342,12.34,158.03,158.02,45.461462]
[1721278926548,12.34,158.03,158.02,51.789762]
[1721278927067,12.34,158.04,158.02,51.789762]
[1721278927238,12.34,158.05,158.03,6.78910497]
[1721278927543,12.34,158.06,158.04,51.3273]
[1721278927861,12.34,158.06,158.05,45.0]
[1721278928041,12.34,158.06,158.05,51.3271]
[1721278928231,12.34,158.07,158.05,51.3271]
[1721278928550,12.34,158.07,158.05,51.78782526]
[1721278928759,12.34,158.07,158.05,45.46072526]
[1721278929254,12.34,158.06,158.05,45.0]
[1721278930142,12.34,158.06,158.04,45.0]
[1721278930350,12.34,158.06,158.03,51.78861727]
[1721278930733,12.34,158.06,158.03,51.3278]
[1721278931741,12.34,158.06,158.04,0.46081595]
[1721278933045,12.34,158.06,158.03,51.3278]
[1721278933962,12.34,158.06,158.04,0.46082358]
[1721278934870,12.34,158.06,158.03,51.3278]
[1721278935534,12.34,158.05,158.03,45.0]
[1721278935734,12.34,158.06,158.03,51.3278]
[1721278936262,12.34,158.06,158.04,0.4608245]
[1721278937157,12.34,158.06,158.04,6.7881245]
[1721278937362,12.34,158.07,158.05,45.46073035]
[1721278938166,7.90674219,158.1,158.05,51.78773035]
[1721278938345,12.34,158.08,158.05,51.78773035]
[1721278939661,12.34,158.09,158.06,6.3266]
[1721278939838,12.34,158.09,158.07,45.46013134]
[1721278940544,12.34,158.09,158.07,0.46013134]
[1721278940742,12.34,158.08,158.07,0.46013134]
[1721278940965,12.34,158.08,158.06,45.0]
[1721278941275,12.34,158.08,158.06,45.46026257]
[1721278941651,12.34,158.08,158.06,45.0]
[1721278941866,16.4249,158.11,158.06,61.3263]
[1721278942070,6.3246,158.12,158.08,10.0]
[1721278942239,16.93354422,158.15,158.09,51.78465951]
[1721278942240,6.3236,158.14,158.09,51.78465951]
[1721278942442,12.34,158.12,158.09,51.78465951]
[1721278942643,16.93354422,158.15,158.11,6.3244]
[1721278942856,12.34,158.14,158.12,45.45901532]
[1721278944272,12.34,158.13,158.12,45.0]
[1721278944475,21.6752,158.15,158.11,45.0]
[1721278944650,12.34,158.13,158.11,45.0]
[1721278944976,12.34,158.14,158.11,45.45908699]
[1721278945357,12.34,158.13,158.11,45.0]
[1721278946456,12.34,158.13,158.12,0.45908426]
[1721278946667,12.34,158.14,158.12,0.45908426]
[1721278947860,6.3223,158.18,158.12,0.45908426]
[1721278948062,16.70246871,158.19,158.12,6.78328426]
[1721278948260,6.3219,158.18,158.13,45.0]
[1721278948444,12.34,158.15,158.13,45.45857678]
[1721278948650,7.90264853,158.18,158.13,51.78247678]
[1721278948958,12.34,158.16,158.13,51.78247678]
[1721278949372,1.58067701,158.22,158.16,6.3226]
[1721278949571,12.34,158.19,158.17,45.45784115]
[1721278950610,12.34,158.18,158.17,45.0]
[1721278951445,12.34,158.18,158.16,45.0]
[1721278953977,7.9011363,158.21,158.16,51.78052312]
[1721278954278,12.34,158.19,158.16,51.78052312]
[1721278955361,12.34,158.18,158.16,51.78052312]
[1721278955687,12.34,158.18,158.16,51.3226]
[1721278956169,12.34,158.18,158.16,45.0]
[1721278957861,12.34,158.19,158.16,51.78040364]
[1721278958067,12.34,158.19,158.17,6.3221]
[1721278958267,12.34,158.2,158.18,45.45765508]
[1721278959867,12.34,158.19,158.18,45.45765508]
[1721278960066,12.34,158.19,158.18,45.0]
[1721278961177,7.90072818,158.22,158.18,45.0]
[1721278961778,12.34,158.19,158.18,45.0]
[1721278962494,7.90072818,158.22,158.18,45.0]
[1721278962705,6.3203,158.22,158.19,0.4573954]
[1721278962890,12.34,158.2,158.19,0.4573954]
[1721278963585,12.34,158.2,158.18,51.77903545]
[1721278963899,12.34,158.2,158.18,45.45733545]
[1721278964899,12.34,158.2,158.18,45.0]
[1721278965412,12.34,158.19,158.18,45.0]
[1721278965713,12.34,158.19,158.17,45.0]
[1721278966002,12.34,158.18,158.17,45.0]
[1721278968197,12.34,158.19,158.17,51.77994961]
[1721278968980,12.34,158.19,158.17,51.3222]
[1721278969178,12.34,158.18,158.17,45.0]
[1721278970405,12.34,158.18,158.14,6.3232]
[1721278970619,12.34,158.15,158.14,6.3232]
[1721278971390,12.34,158.16,158.15,22.1306]